[Event "Titled Tuesday Blitz March 21 Late 2023"]
[White "Andreikin, Dmitry"]
[Black "Pakleza, Zbigniew"]
[WhiteFideId "4158814"]
[BlackFideId "1119290"]
[WhiteElo "2736"]
[BlackElo "2410"]
[Result "1-0"]
[Round "10"]
[TimeControl "180+2"]
[Date "2023.03.21"]
[WhiteClock "0:00:21"]
[BlackClock "0:00:01"]

1. c4 {[%clk 0:03:00]}  c6 {[%clk 0:02:57]} 2. g3 {[%clk 0:03:00]}  d5 {[%clk 0:02:58]} 3. Na3 {[%clk 0:03:00]}  Nf6 {[%clk 0:02:58]} 4. Bg2 {[%clk 0:02:59]}  Bf5 {[%clk 0:02:56]} 5. Qb3 {[%clk 0:02:57]}  Qb6 {[%clk 0:02:56]} 6. cxd5 {[%clk 0:02:55]}  cxd5 {[%clk 0:02:36]} 7. Qxb6 {[%clk 0:02:51]}  axb6 {[%clk 0:02:36]} 8. Nb5 {[%clk 0:02:51]}  Kd7 {[%clk 0:02:33]} 9. Nd4 {[%clk 0:02:46]}  Bg6 {[%clk 0:02:30]} 10. Ngf3 {[%clk 0:02:46]}  Nc6 {[%clk 0:02:27]} 11. Nxc6 {[%clk 0:02:43]}  bxc6 {[%clk 0:02:28]} 12. Ne5+ {[%clk 0:02:43]}  Kc7 {[%clk 0:02:27]} 13. d3 {[%clk 0:02:34]}  e6 {[%clk 0:02:24]} 14. O-O {[%clk 0:02:34]}  Kb7 {[%clk 0:02:08]} 15. Bf4 {[%clk 0:02:32]}  Bc5 {[%clk 0:02:01]} 16. Rfc1 {[%clk 0:02:10]}  Rhc8 {[%clk 0:02:01]} 17. Rc2 {[%clk 0:02:07]}  Ne8 {[%clk 0:01:36]} 18. a3 {[%clk 0:01:58]}  f6 {[%clk 0:01:23]} 19. Nxg6 {[%clk 0:01:58]}  hxg6 {[%clk 0:01:24]} 20. Rac1 {[%clk 0:01:56]}  Bd6 {[%clk 0:01:19]} 21. Bd2 {[%clk 0:01:53]}  c5 {[%clk 0:00:55]} 22. e4 {[%clk 0:01:49]}  Nc7 {[%clk 0:00:56]} 23. d4 {[%clk 0:01:47]}  Kb8 {[%clk 0:00:22]} 24. dxc5 {[%clk 0:01:43]}  bxc5 {[%clk 0:00:22]} 25. exd5 {[%clk 0:01:38]}  exd5 {[%clk 0:00:18]} 26. Be3 {[%clk 0:01:18]}  c4 {[%clk 0:00:15]} 27. Bb6 {[%clk 0:00:59]}  Ra6 {[%clk 0:00:15]} 28. Bxc7+ {[%clk 0:00:59]}  Rxc7 {[%clk 0:00:16]} 29. Bxd5 {[%clk 0:00:59]}  Be5 {[%clk 0:00:04]} 30. Bxc4 {[%clk 0:00:51]}  Rac6 {[%clk 0:00:04]} 31. b3 {[%clk 0:00:50]}  Rd6 {[%clk 0:00:03]} 32. Kg2 {[%clk 0:00:46]}  g5 {[%clk 0:00:04]} 33. Kf3 {[%clk 0:00:45]}  f5 {[%clk 0:00:04]} 34. h3 {[%clk 0:00:45]}  g6 {[%clk 0:00:04]} 35. Be2 {[%clk 0:00:42]}  Rxc2 {[%clk 0:00:03]} 36. Rxc2 {[%clk 0:00:43]}  Rb6 {[%clk 0:00:04]} 37. Bc4 {[%clk 0:00:42]}  Bd6 {[%clk 0:00:03]} 38. a4 {[%clk 0:00:37]}  Bb4 {[%clk 0:00:04]} 39. Re2 {[%clk 0:00:36]}  Kc7 {[%clk 0:00:03]} 40. Re8 {[%clk 0:00:33]}  Rd6 {[%clk 0:00:02]} 41. Rg8 {[%clk 0:00:32]}  Kb6 {[%clk 0:00:01]} 42. Bf7 {[%clk 0:00:30]}  Rd3+ {[%clk 0:00:01]} 43. Kg2 {[%clk 0:00:30]}  Kc5 {[%clk 0:00:01]} 44. Rxg6 {[%clk 0:00:29]}  Bd2 {[%clk 0:00:01]} 45. Bc4 {[%clk 0:00:24]}  Rc3 {[%clk 0:00:01]} 46. Re6 {[%clk 0:00:23]}  f4 {[%clk 0:00:01]} 47. gxf4 {[%clk 0:00:22]}  gxf4 {[%clk 0:00:01]} 48. h4 {[%clk 0:00:21]}  f3+ {[%clk 0:00:01]} 49. Kg3 {[%clk 0:00:21]}  Kb4 {[%clk 0:00:01]} 50. h5 {[%clk 0:00:21]}  Bc1 {[%clk 0:00:02]} 51. h6 {[%clk 0:00:21]}  Rc2 {[%clk 0:00:01]} 52. h7 {[%clk 0:00:22]}  Bb2 {[%clk 0:00:01]} 53. Re8 {[%clk 0:00:21]}  Rxc4 {[%clk 0:00:01]} 54. bxc4 {[%clk 0:00:21]} 1-0


[Site "https://www.chess.com"]

[Event "Titled Tuesday Blitz March 21 Late 2023"]
[White "Holt, Conrad"]
[Black "Duda, Jan-Krzysztof"]
[WhiteFideId "2034387"]
[BlackFideId "1170546"]
[WhiteElo "2592"]
[BlackElo "2790"]
[Result "0-1"]
[Round "10"]
[TimeControl "180+2"]
[Date "2023.03.21"]
[WhiteClock "0:00:04"]
[BlackClock "0:00:09"]

1. d4 {[%clk 0:03:00]}  Nf6 {[%clk 0:02:30]} 2. c4 {[%clk 0:03:00]}  g6 {[%clk 0:02:31]} 3. Nc3 {[%clk 0:03:01]}  Bg7 {[%clk 0:02:32]} 4. e4 {[%clk 0:03:01]}  d6 {[%clk 0:02:33]} 5. Nf3 {[%clk 0:03:01]}  O-O {[%clk 0:02:33]} 6. h3 {[%clk 0:03:00]}  e5 {[%clk 0:02:32]} 7. d5 {[%clk 0:03:00]}  Nh5 {[%clk 0:02:32]} 8. Nh2 {[%clk 0:02:56]}  Nf4 {[%clk 0:02:19]} 9. g3 {[%clk 0:02:55]}  Nxh3 {[%clk 0:02:12]} 10. Nf3 {[%clk 0:02:54]}  Nxf2 {[%clk 0:02:12]} 11. Kxf2 {[%clk 0:02:53]}  f5 {[%clk 0:02:12]} 12. exf5 {[%clk 0:02:45]}  Bxf5 {[%clk 0:02:00]} 13. Kg2 {[%clk 0:02:44]}  Na6 {[%clk 0:01:53]} 14. Nh4 {[%clk 0:02:33]}  Bd7 {[%clk 0:01:41]} 15. Be3 {[%clk 0:02:22]}  e4 {[%clk 0:01:35]} 16. Be2 {[%clk 0:02:16]}  Qe7 {[%clk 0:01:35]} 17. Qd2 {[%clk 0:02:08]}  Nc5 {[%clk 0:01:34]} 18. Raf1 {[%clk 0:02:02]}  Nd3 {[%clk 0:01:31]} 19. Rxf8+ {[%clk 0:01:46]}  Rxf8 {[%clk 0:01:32]} 20. Bxd3 {[%clk 0:01:46]}  exd3 {[%clk 0:01:32]} 21. Qxd3 {[%clk 0:01:45]}  Bxc3 {[%clk 0:01:17]} 22. bxc3 {[%clk 0:01:44]}  g5 {[%clk 0:01:11]} 23. Nf3 {[%clk 0:01:19]}  Bf5 {[%clk 0:01:09]} 24. Bxg5 {[%clk 0:01:08]}  Qxg5 {[%clk 0:01:06]} 25. Nxg5 {[%clk 0:01:08]}  Bxd3 {[%clk 0:01:07]} 26. Rh4 {[%clk 0:01:05]}  Rf6 {[%clk 0:00:32]} 27. Rd4 {[%clk 0:00:47]}  Bb1 {[%clk 0:00:19]} 28. a3 {[%clk 0:00:43]}  h6 {[%clk 0:00:18]} 29. Ne6 {[%clk 0:00:43]}  c5 {[%clk 0:00:19]} 30. dxc6 {[%clk 0:00:09]}  Rxe6 {[%clk 0:00:18]} 31. c7 {[%clk 0:00:03]}  Re8 {[%clk 0:00:17]} 32. Rxd6 {[%clk 0:00:03]}  Bf5 {[%clk 0:00:05]} 33. Kf3 {[%clk 0:00:03]}  h5 {[%clk 0:00:03]} 34. Kf4 {[%clk 0:00:03]}  Bg4 {[%clk 0:00:03]} 35. Kg5 {[%clk 0:00:03]}  Kf7 {[%clk 0:00:04]} 36. c5 {[%clk 0:00:03]}  Rg8+ {[%clk 0:00:04]} 37. Kf4 {[%clk 0:00:03]}  Ke7 {[%clk 0:00:04]} 38. Rh6 {[%clk 0:00:02]}  Rc8 {[%clk 0:00:04]} 39. Rh7+ {[%clk 0:00:02]}  Ke6 {[%clk 0:00:04]} 40. Ke4 {[%clk 0:00:02]}  Bf5+ {[%clk 0:00:05]} 41. Kd4 {[%clk 0:00:03]}  Bxh7 {[%clk 0:00:05]} 42. Kc4 {[%clk 0:00:03]}  Rxc7 {[%clk 0:00:06]} 43. Kb5 {[%clk 0:00:04]}  Be4 {[%clk 0:00:06]} 44. c4 {[%clk 0:00:05]}  Bc6+ {[%clk 0:00:07]} 45. Ka5 {[%clk 0:00:05]}  Rg7 {[%clk 0:00:08]} 46. Kb4 {[%clk 0:00:04]}  Rxg3 {[%clk 0:00:08]} 47. a4 {[%clk 0:00:05]}  h4 {[%clk 0:00:08]} 48. a5 {[%clk 0:00:03]}  h3 {[%clk 0:00:08]} 49. a6 {[%clk 0:00:04]}  bxa6 {[%clk 0:00:09]} 50. Ka5 {[%clk 0:00:04]}  Rb3 {[%clk 0:00:09]} 51. Kxa6 {[%clk 0:00:04]}  Ra3# {[%clk 0:00:09]} 0-1


[Site "https://www.chess.com"]

[Event "Titled Tuesday Blitz March 21 Late 2023"]
[White "Makarian, Rudik"]
[Black "Postny, Evgeny"]
[WhiteFideId "44105681"]
[BlackFideId "2804344"]
[WhiteElo "2436"]
[BlackElo "2509"]
[Result "1-0"]
[Round "10"]
[TimeControl "180+2"]
[Date "2023.03.21"]
[WhiteClock "0:00:13"]
[BlackClock "0:00:02"]

1. e4 {[%clk 0:03:00]}  c5 {[%clk 0:02:56]} 2. b3 {[%clk 0:03:01]}  d6 {[%clk 0:02:53]} 3. Bb2 {[%clk 0:03:01]}  Nc6 {[%clk 0:02:53]} 4. Bb5 {[%clk 0:03:00]}  e5 {[%clk 0:02:53]} 5. f4 {[%clk 0:02:55]}  exf4 {[%clk 0:02:49]} 6. Qf3 {[%clk 0:02:52]}  Qh4+ {[%clk 0:02:41]} 7. Kf1 {[%clk 0:02:43]}  Bd7 {[%clk 0:02:35]} 8. Ne2 {[%clk 0:02:37]}  Bg4 {[%clk 0:02:20]} 9. Qf2 {[%clk 0:02:30]}  Bxe2+ {[%clk 0:02:18]} 10. Kxe2 {[%clk 0:02:27]}  Qxf2+ {[%clk 0:02:12]} 11. Kxf2 {[%clk 0:02:28]}  Ne7 {[%clk 0:02:12]} 12. Kf3 {[%clk 0:02:20]}  Ng6 {[%clk 0:02:08]} 13. Nc3 {[%clk 0:02:20]}  a6 {[%clk 0:02:06]} 14. Bxc6+ {[%clk 0:02:19]}  bxc6 {[%clk 0:02:07]} 15. Ne2 {[%clk 0:02:19]}  d5 {[%clk 0:01:51]} 16. Nxf4 {[%clk 0:02:10]}  Bd6 {[%clk 0:01:48]} 17. Nxg6 {[%clk 0:02:02]}  fxg6 {[%clk 0:01:47]} 18. Bxg7 {[%clk 0:01:51]}  Rg8 {[%clk 0:01:47]} 19. Bb2 {[%clk 0:01:52]}  Rf8+ {[%clk 0:01:43]} 20. Ke2 {[%clk 0:01:52]}  dxe4 {[%clk 0:01:42]} 21. Rhf1 {[%clk 0:01:44]}  Kd7 {[%clk 0:01:41]} 22. h3 {[%clk 0:01:43]}  Ke6 {[%clk 0:01:36]} 23. Bg7 {[%clk 0:01:41]}  Rxf1 {[%clk 0:01:24]} 24. Rxf1 {[%clk 0:01:42]}  Be7 {[%clk 0:01:23]} 25. Ke3 {[%clk 0:01:29]}  Rd8 {[%clk 0:01:16]} 26. Bc3 {[%clk 0:01:16]}  Kd5 {[%clk 0:00:55]} 27. Rf7 {[%clk 0:01:11]}  Bg5+ {[%clk 0:00:52]} 28. Ke2 {[%clk 0:01:11]}  h5 {[%clk 0:00:50]} 29. Rg7 {[%clk 0:01:05]}  Rd6 {[%clk 0:00:48]} 30. Ra7 {[%clk 0:00:59]}  Bf6 {[%clk 0:00:35]} 31. Bxf6 {[%clk 0:00:47]}  Rxf6 {[%clk 0:00:36]} 32. Rxa6 {[%clk 0:00:47]}  Rf5 {[%clk 0:00:35]} 33. Ra8 {[%clk 0:00:34]}  Rg5 {[%clk 0:00:35]} 34. Kf2 {[%clk 0:00:34]}  Rf5+ {[%clk 0:00:35]} 35. Ke3 {[%clk 0:00:34]}  Rg5 {[%clk 0:00:31]} 36. Rd8+ {[%clk 0:00:32]}  Ke5 {[%clk 0:00:29]} 37. Re8+ {[%clk 0:00:31]}  Kd5 {[%clk 0:00:27]} 38. Kf2 {[%clk 0:00:23]}  Rf5+ {[%clk 0:00:27]} 39. Kg1 {[%clk 0:00:20]}  c4 {[%clk 0:00:26]} 40. bxc4+ {[%clk 0:00:17]}  Kd4 {[%clk 0:00:25]} 41. Re6 {[%clk 0:00:17]}  Ra5 {[%clk 0:00:20]} 42. Rd6+ {[%clk 0:00:13]}  Kc5 {[%clk 0:00:16]} 43. Rxg6 {[%clk 0:00:12]}  Rxa2 {[%clk 0:00:16]} 44. Re6 {[%clk 0:00:10]}  Kd4 {[%clk 0:00:11]} 45. Rxc6 {[%clk 0:00:09]}  Rxc2 {[%clk 0:00:11]} 46. Rd6+ {[%clk 0:00:10]}  Ke5 {[%clk 0:00:09]} 47. Rd5+ {[%clk 0:00:09]}  Kf4 {[%clk 0:00:08]} 48. Kf2 {[%clk 0:00:08]}  h4 {[%clk 0:00:08]} 49. Rd4 {[%clk 0:00:07]}  Ke5 {[%clk 0:00:07]} 50. Ke3 {[%clk 0:00:08]}  Kf5 {[%clk 0:00:03]} 51. Rxe4 {[%clk 0:00:07]}  Kg5 {[%clk 0:00:04]} 52. Rg4+ {[%clk 0:00:07]}  Kh5 {[%clk 0:00:03]} 53. d3 {[%clk 0:00:08]}  Rc1 {[%clk 0:00:02]} 54. Kd4 {[%clk 0:00:09]}  Ra1 {[%clk 0:00:02]} 55. Kd5 {[%clk 0:00:09]}  Ra8 {[%clk 0:00:02]} 56. c5 {[%clk 0:00:09]}  Rd8+ {[%clk 0:00:03]} 57. Kc4 {[%clk 0:00:10]}  Ra8 {[%clk 0:00:03]} 58. d4 {[%clk 0:00:11]}  Ra4+ {[%clk 0:00:03]} 59. Kd5 {[%clk 0:00:11]}  Ra6 {[%clk 0:00:02]} 60. Ke5 {[%clk 0:00:12]}  Ra8 {[%clk 0:00:02]} 61. d5 {[%clk 0:00:12]}  Re8+ {[%clk 0:00:03]} 62. Kd4 {[%clk 0:00:12]}  Re1 {[%clk 0:00:02]} 63. c6 {[%clk 0:00:12]}  Rd1+ {[%clk 0:00:02]} 64. Kc5 {[%clk 0:00:13]}  Rc1+ {[%clk 0:00:02]} 65. Kd6 {[%clk 0:00:13]} 1-0


[Site "https://www.chess.com"]

[Event "Titled Tuesday Blitz March 21 Late 2023"]
[White "Zhigalko, Sergei"]
[Black "Santos Ruiz, Miguel"]
[WhiteFideId "13502956"]
[BlackFideId "22291482"]
[WhiteElo "2626"]
[BlackElo "2504"]
[Result "1-0"]
[Round "10"]
[TimeControl "180+2"]
[Date "2023.03.21"]
[WhiteClock "0:01:09"]
[BlackClock "0:00:20"]

1. e4 {[%clk 0:03:00]}  e5 {[%clk 0:02:57]} 2. Nf3 {[%clk 0:03:00]}  Nc6 {[%clk 0:02:57]} 3. Bc4 {[%clk 0:03:01]}  Nf6 {[%clk 0:02:57]} 4. d3 {[%clk 0:03:01]}  Bc5 {[%clk 0:02:56]} 5. O-O {[%clk 0:03:01]}  d6 {[%clk 0:02:55]} 6. Nbd2 {[%clk 0:03:01]}  a6 {[%clk 0:02:54]} 7. c3 {[%clk 0:03:02]}  Ba7 {[%clk 0:02:54]} 8. Bb3 {[%clk 0:03:02]}  h6 {[%clk 0:02:48]} 9. Re1 {[%clk 0:03:01]}  g5 {[%clk 0:02:45]} 10. Nf1 {[%clk 0:02:35]}  g4 {[%clk 0:02:40]} 11. N3d2 {[%clk 0:02:35]}  h5 {[%clk 0:02:34]} 12. Nc4 {[%clk 0:02:33]}  h4 {[%clk 0:02:26]} 13. Be3 {[%clk 0:02:30]}  g3 {[%clk 0:02:06]} 14. fxg3 {[%clk 0:02:15]}  hxg3 {[%clk 0:02:04]} 15. h3 {[%clk 0:02:11]}  Be6 {[%clk 0:00:45]} 16. Bxa7 {[%clk 0:01:59]}  Rxa7 {[%clk 0:00:40]} 17. Nxg3 {[%clk 0:01:53]}  Kd7 {[%clk 0:00:38]} 18. Qf3 {[%clk 0:01:49]}  Nh7 {[%clk 0:00:33]} 19. Ne3 {[%clk 0:01:44]}  Ng5 {[%clk 0:00:34]} 20. Bxe6+ {[%clk 0:01:42]}  fxe6 {[%clk 0:00:34]} 21. Qg4 {[%clk 0:01:41]}  Qe7 {[%clk 0:00:32]} 22. Nd5 {[%clk 0:01:25]}  Qd8 {[%clk 0:00:20]} 23. Rf1 {[%clk 0:01:13]}  Ra8 {[%clk 0:00:20]} 24. Nf6+ {[%clk 0:01:09]} 1-0


[Site "https://www.chess.com"]

[Event "Titled Tuesday Blitz March 21 Late 2023"]
[White "Vetoshko, Volodymyr"]
[Black "Galaktionov, Artem"]
[WhiteFideId "14122480"]
[BlackFideId "24175471"]
[WhiteElo "2422"]
[BlackElo "2340"]
[Result "1-0"]
[Round "10"]
[TimeControl "180+2"]
[Date "2023.03.21"]
[WhiteClock "0:00:13"]
[BlackClock "0:00:11"]

1. e4 {[%clk 0:02:56]}  c6 {[%clk 0:03:00]} 2. d4 {[%clk 0:02:55]}  g6 {[%clk 0:03:00]} 3. Nf3 {[%clk 0:02:55]}  d6 {[%clk 0:03:01]} 4. h3 {[%clk 0:02:55]}  Bg7 {[%clk 0:03:02]} 5. Bd3 {[%clk 0:02:54]}  Nd7 {[%clk 0:03:02]} 6. O-O {[%clk 0:02:54]}  e5 {[%clk 0:03:03]} 7. Bg5 {[%clk 0:02:53]}  Ngf6 {[%clk 0:03:03]} 8. c3 {[%clk 0:02:52]}  h6 {[%clk 0:03:03]} 9. Be3 {[%clk 0:02:52]}  O-O {[%clk 0:03:02]} 10. Nbd2 {[%clk 0:02:49]}  Qe7 {[%clk 0:02:56]} 11. a4 {[%clk 0:02:47]}  Nh5 {[%clk 0:02:55]} 12. Re1 {[%clk 0:02:46]}  Nf4 {[%clk 0:02:41]} 13. Bxf4 {[%clk 0:02:44]}  exf4 {[%clk 0:02:42]} 14. e5 {[%clk 0:02:29]}  dxe5 {[%clk 0:02:33]} 15. dxe5 {[%clk 0:02:30]}  Nc5 {[%clk 0:02:32]} 16. Bc2 {[%clk 0:02:30]}  Rd8 {[%clk 0:02:28]} 17. Qe2 {[%clk 0:02:29]}  a5 {[%clk 0:02:22]} 18. Qc4 {[%clk 0:02:25]}  g5 {[%clk 0:02:19]} 19. Ne4 {[%clk 0:02:24]}  Nxe4 {[%clk 0:02:11]} 20. Qxe4 {[%clk 0:02:25]}  Be6 {[%clk 0:02:09]} 21. Nd4 {[%clk 0:02:20]}  Rd5 {[%clk 0:02:06]} 22. Qh7+ {[%clk 0:01:55]}  Kf8 {[%clk 0:02:06]} 23. Bf5 {[%clk 0:01:40]}  Re8 {[%clk 0:01:22]} 24. Ra3 {[%clk 0:01:33]}  Rxe5 {[%clk 0:00:42]} 25. Rxe5 {[%clk 0:01:34]}  Bxe5 {[%clk 0:00:42]} 26. Bxe6 {[%clk 0:01:27]}  fxe6 {[%clk 0:00:43]} 27. Qxh6+ {[%clk 0:01:24]}  Bg7 {[%clk 0:00:43]} 28. Qg6 {[%clk 0:01:21]}  Qf6 {[%clk 0:00:34]} 29. Qh5 {[%clk 0:00:52]}  e5 {[%clk 0:00:18]} 30. Nf3 {[%clk 0:00:51]}  Bh6 {[%clk 0:00:18]} 31. Rb3 {[%clk 0:00:50]}  Re7 {[%clk 0:00:17]} 32. Qg4 {[%clk 0:00:44]}  e4 {[%clk 0:00:17]} 33. Nd4 {[%clk 0:00:36]}  e3 {[%clk 0:00:14]} 34. Rxb7 {[%clk 0:00:23]}  exf2+ {[%clk 0:00:06]} 35. Kxf2 {[%clk 0:00:23]}  Rxb7 {[%clk 0:00:04]} 36. Qc8+ {[%clk 0:00:23]}  Kg7 {[%clk 0:00:04]} 37. Qxb7+ {[%clk 0:00:22]}  Kh8 {[%clk 0:00:04]} 38. Qxc6 {[%clk 0:00:19]}  Qf8 {[%clk 0:00:04]} 39. Ne6 {[%clk 0:00:14]}  Qf6 {[%clk 0:00:02]} 40. Qd5 {[%clk 0:00:10]}  g4 {[%clk 0:00:01]} 41. Qd8+ {[%clk 0:00:07]}  Qxd8 {[%clk 0:00:01]} 42. Nxd8 {[%clk 0:00:08]}  gxh3 {[%clk 0:00:02]} 43. gxh3 {[%clk 0:00:08]}  f3 {[%clk 0:00:02]} 44. Kxf3 {[%clk 0:00:07]}  Bc1 {[%clk 0:00:03]} 45. b3 {[%clk 0:00:08]}  Bd2 {[%clk 0:00:03]} 46. c4 {[%clk 0:00:08]}  Kg7 {[%clk 0:00:04]} 47. Ke4 {[%clk 0:00:07]}  Kf6 {[%clk 0:00:05]} 48. Kd5 {[%clk 0:00:07]}  Ke7 {[%clk 0:00:04]} 49. Nc6+ {[%clk 0:00:07]}  Kd7 {[%clk 0:00:05]} 50. Kc5 {[%clk 0:00:06]}  Kc7 {[%clk 0:00:06]} 51. Kb5 {[%clk 0:00:07]}  Kd6 {[%clk 0:00:06]} 52. Nxa5 {[%clk 0:00:07]}  Kc7 {[%clk 0:00:06]} 53. Nc6 {[%clk 0:00:08]}  Kd6 {[%clk 0:00:06]} 54. Nb4 {[%clk 0:00:08]}  Be3 {[%clk 0:00:07]} 55. Nd5 {[%clk 0:00:08]}  Bd4 {[%clk 0:00:07]} 56. h4 {[%clk 0:00:08]}  Ke5 {[%clk 0:00:06]} 57. h5 {[%clk 0:00:09]}  Kf5 {[%clk 0:00:07]} 58. a5 {[%clk 0:00:10]}  Kg5 {[%clk 0:00:07]} 59. a6 {[%clk 0:00:11]}  Kxh5 {[%clk 0:00:08]} 60. c5 {[%clk 0:00:12]}  Kg5 {[%clk 0:00:08]} 61. a7 {[%clk 0:00:12]}  Kf5 {[%clk 0:00:09]} 62. a8=Q {[%clk 0:00:13]}  Ke5 {[%clk 0:00:10]} 63. Nb4 {[%clk 0:00:12]}  Kf4 {[%clk 0:00:10]} 64. Qd5 {[%clk 0:00:12]}  Be3 {[%clk 0:00:10]} 65. Nd3+ {[%clk 0:00:12]}  Kg3 {[%clk 0:00:11]} 66. c6 {[%clk 0:00:13]} 1-0


[Site "https://www.chess.com"]

[Event "Titled Tuesday Blitz March 21 Late 2023"]
[White "Timofeev, Artyom"]
[Black "Zamorano, Jorge"]
[WhiteFideId "4140419"]
[BlackFideId "173770"]
[WhiteElo "2586"]
[BlackElo "2331"]
[Result "1-0"]
[Round "10"]
[TimeControl "180+2"]
[Date "2023.03.21"]
[WhiteClock "0:01:16"]
[BlackClock "0:00:32"]

1. e4 {[%clk 0:03:00]}  c5 {[%clk 0:02:56]} 2. Nf3 {[%clk 0:03:00]}  d6 {[%clk 0:02:56]} 3. d4 {[%clk 0:02:59]}  cxd4 {[%clk 0:02:56]} 4. Nxd4 {[%clk 0:03:00]}  Nf6 {[%clk 0:02:57]} 5. Nc3 {[%clk 0:03:01]}  a6 {[%clk 0:02:57]} 6. Be3 {[%clk 0:03:00]}  e5 {[%clk 0:02:57]} 7. Nf3 {[%clk 0:03:00]}  Be7 {[%clk 0:02:56]} 8. Bc4 {[%clk 0:03:00]}  O-O {[%clk 0:02:57]} 9. O-O {[%clk 0:03:00]}  Be6 {[%clk 0:02:57]} 10. Qd3 {[%clk 0:02:59]}  Qc7 {[%clk 0:02:12]} 11. Bxe6 {[%clk 0:02:50]}  fxe6 {[%clk 0:02:13]} 12. Ng5 {[%clk 0:02:49]}  Qd7 {[%clk 0:02:10]} 13. Qc4 {[%clk 0:02:48]}  d5 {[%clk 0:02:09]} 14. exd5 {[%clk 0:02:46]}  exd5 {[%clk 0:02:09]} 15. Qb3 {[%clk 0:02:46]}  Nc6 {[%clk 0:01:59]} 16. Rad1 {[%clk 0:02:45]}  Rad8 {[%clk 0:01:50]} 17. Bb6 {[%clk 0:02:44]}  Nd4 {[%clk 0:01:45]} 18. Bxd4 {[%clk 0:02:30]}  exd4 {[%clk 0:01:45]} 19. Ne2 {[%clk 0:02:30]}  h6 {[%clk 0:01:33]} 20. Nf3 {[%clk 0:02:29]}  Bc5 {[%clk 0:01:28]} 21. Nexd4 {[%clk 0:02:27]}  Ne4 {[%clk 0:01:26]} 22. c3 {[%clk 0:02:23]}  Kh8 {[%clk 0:01:25]} 23. Qc2 {[%clk 0:02:22]}  Qg4 {[%clk 0:01:20]} 24. Ne5 {[%clk 0:02:17]}  Qh5 {[%clk 0:01:21]} 25. Nd3 {[%clk 0:02:05]}  Bd6 {[%clk 0:01:17]} 26. g3 {[%clk 0:02:04]}  Qh3 {[%clk 0:01:11]} 27. f3 {[%clk 0:01:53]}  Ng5 {[%clk 0:01:10]} 28. Qg2 {[%clk 0:01:51]}  Qd7 {[%clk 0:01:08]} 29. Rde1 {[%clk 0:01:45]}  Rf6 {[%clk 0:01:07]} 30. Kh1 {[%clk 0:01:39]}  Rdf8 {[%clk 0:01:05]} 31. Ne5 {[%clk 0:01:32]}  Qc7 {[%clk 0:00:56]} 32. Ng4 {[%clk 0:01:25]}  Rg6 {[%clk 0:00:53]} 33. Ne3 {[%clk 0:01:25]}  Qf7 {[%clk 0:00:49]} 34. f4 {[%clk 0:01:21]}  Ne4 {[%clk 0:00:49]} 35. Nxd5 {[%clk 0:01:19]}  Qxd5 {[%clk 0:00:32]} 36. Qxe4 {[%clk 0:01:18]}  Qh5 {[%clk 0:00:31]} 37. Kg2 {[%clk 0:01:18]}  Bc5 {[%clk 0:00:32]} 38. Ne6 {[%clk 0:01:16]} 1-0


[Site "https://www.chess.com"]

[Event "Titled Tuesday Blitz March 21 Late 2023"]
[White "Szente Varga, Fruzsina"]
[Black "Averjanov, Alexey"]
[WhiteFideId "712264"]
[BlackFideId "14109867"]
[WhiteElo "1994"]
[BlackElo "2799"]
[Result "0-1"]
[Round "10"]
[TimeControl "180+2"]
[Date "2023.03.21"]
[WhiteClock "0:00:03"]
[BlackClock "0:00:17"]

1. e4 {[%clk 0:03:00]}  c6 {[%clk 0:02:59]} 2. d4 {[%clk 0:03:00]}  d5 {[%clk 0:02:58]} 3. Nc3 {[%clk 0:03:01]}  dxe4 {[%clk 0:02:58]} 4. Nxe4 {[%clk 0:03:01]}  Bf5 {[%clk 0:02:58]} 5. Ng3 {[%clk 0:03:02]}  Bg6 {[%clk 0:02:58]} 6. c3 {[%clk 0:03:02]}  Nf6 {[%clk 0:02:57]} 7. Bc4 {[%clk 0:03:03]}  e6 {[%clk 0:02:55]} 8. N1e2 {[%clk 0:03:03]}  Nd5 {[%clk 0:02:53]} 9. O-O {[%clk 0:03:03]}  Nd7 {[%clk 0:02:52]} 10. f4 {[%clk 0:03:02]}  Bd6 {[%clk 0:02:47]} 11. f5 {[%clk 0:03:02]}  exf5 {[%clk 0:02:46]} 12. Nxf5 {[%clk 0:03:02]}  Bxf5 {[%clk 0:02:44]} 13. Rxf5 {[%clk 0:03:03]}  N7b6 {[%clk 0:02:39]} 14. Bd3 {[%clk 0:02:53]}  Qh4 {[%clk 0:02:16]} 15. g3 {[%clk 0:02:41]}  Qh3 {[%clk 0:02:10]} 16. Nf4 {[%clk 0:02:35]}  Nxf4 {[%clk 0:02:06]} 17. Bxf4 {[%clk 0:02:35]}  Bxf4 {[%clk 0:02:03]} 18. Qe2+ {[%clk 0:02:32]}  Kf8 {[%clk 0:01:54]} 19. Rxf4 {[%clk 0:02:30]}  Nd5 {[%clk 0:01:51]} 20. Rf3 {[%clk 0:01:48]}  Re8 {[%clk 0:01:47]} 21. Qf2 {[%clk 0:01:48]}  Qd7 {[%clk 0:01:45]} 22. Rf1 {[%clk 0:01:43]}  Re7 {[%clk 0:01:45]} 23. Bf5 {[%clk 0:01:39]}  Qd6 {[%clk 0:01:42]} 24. Bd3 {[%clk 0:00:51]}  Nf6 {[%clk 0:01:34]} 25. Rf4 {[%clk 0:00:49]}  h5 {[%clk 0:01:31]} 26. Qf3 {[%clk 0:00:33]}  Rh6 {[%clk 0:01:22]} 27. Bc4 {[%clk 0:00:33]}  b5 {[%clk 0:01:18]} 28. Bb3 {[%clk 0:00:32]}  a6 {[%clk 0:01:12]} 29. Rf5 {[%clk 0:00:32]}  Kg8 {[%clk 0:01:07]} 30. Rg5 {[%clk 0:00:31]}  Kf8 {[%clk 0:01:03]} 31. Rf5 {[%clk 0:00:29]}  Rg6 {[%clk 0:00:56]} 32. Bc2 {[%clk 0:00:29]}  Rh6 {[%clk 0:00:54]} 33. Kg2 {[%clk 0:00:29]}  Kg8 {[%clk 0:00:51]} 34. Rg5 {[%clk 0:00:29]}  Nd5 {[%clk 0:00:47]} 35. Be4 {[%clk 0:00:22]}  Rf6 {[%clk 0:00:44]} 36. Rf5 {[%clk 0:00:21]}  Rxf5 {[%clk 0:00:42]} 37. Bxf5 {[%clk 0:00:20]}  Ne3+ {[%clk 0:00:42]} 38. Kh3 {[%clk 0:00:21]}  Nxf1 {[%clk 0:00:40]} 39. Qxf1 {[%clk 0:00:21]}  Qf6 {[%clk 0:00:39]} 40. Qd3 {[%clk 0:00:20]}  g6 {[%clk 0:00:37]} 41. Bc8 {[%clk 0:00:17]}  Qf2 {[%clk 0:00:34]} 42. d5 {[%clk 0:00:05]}  Re2 {[%clk 0:00:31]} 43. Kh4 {[%clk 0:00:05]}  Re3 {[%clk 0:00:22]} 44. Qd4 {[%clk 0:00:02]}  Qxh2+ {[%clk 0:00:21]} 45. Kg5 {[%clk 0:00:03]}  Qxg3+ {[%clk 0:00:19]} 46. Kh6 {[%clk 0:00:03]}  Re5 {[%clk 0:00:17]} 0-1


[Site "https://www.chess.com"]